[Event "2026 European Womens Championship"]
[Site "Batumi, GE"]
[Date "2026.05.28"]
[Round "4"]
[White "Zeliantsova, Kseniya"]
[Black "Badelka, Olga"]
[Result "0-1"]
[Board "39"]
[TimeControl "5400+30"]
[WhiteFideId "13512617"]
[BlackFideId "13509926"]
[WhiteElo "2176"]
[BlackElo "2392"]
[WhiteTitle "WFM"]
[BlackTitle "IM"]
[WhiteClock "0:01:29"]
[BlackClock "0:01:18"]
[Variant "Standard"]

1. e4 {[%clk 1:30:58]}  e6 {[%clk 1:30:55]} 2. Nf3 {[%clk 1:31:19]}  d5 {[%clk 1:31:17]} 3. e5 {[%clk 1:31:34]}  c5 {[%clk 1:31:19]}
4. c3 {[%clk 1:31:58]}  Bd7 {[%clk 1:30:25]} 5. d4 {[%clk 1:31:23]}  Qb6 {[%clk 1:29:57]} 6. Be2 {[%clk 1:29:08]}  Nc6 {[%clk 1:27:02]}
7. O-O {[%clk 1:26:31]}  a5 {[%clk 1:18:08]} 8. a4 {[%clk 1:19:32]}  cxd4 {[%clk 1:06:52]} 9. cxd4 {[%clk 1:19:03]}  Nge7 {[%clk 1:07:18]}
10. Nc3 {[%clk 1:17:51]}  Nf5 {[%clk 1:07:43]} 11. Nb5 {[%clk 1:16:25]}  h5 {[%clk 1:06:23]} 12. Bd3 {[%clk 1:03:53]}  Nb4 {[%clk 0:46:40]}
13. Bxf5 {[%clk 0:58:25]}  exf5 {[%clk 0:47:04]} 14. e6 {[%clk 0:52:13]}  fxe6 {[%clk 0:47:15]} 15. Ne5 {[%clk 0:38:11]}  Bxb5 {[%clk 0:47:01]}
16. axb5 {[%clk 0:38:36]}  Bd6 {[%clk 0:46:26]} 17. Ng6 {[%clk 0:38:36]}  Rh7 {[%clk 0:46:46]} 18. Bf4 {[%clk 0:34:25]}  Bxf4 {[%clk 0:43:12]}
19. Nxf4 {[%clk 0:34:17]}  Kf7 {[%clk 0:42:36]} 20. Re1 {[%clk 0:30:34]}  Rh6 {[%clk 0:42:21]} 21. Rc1 {[%clk 0:25:25]}  h4 {[%clk 0:38:20]}
22. Qe2 {[%clk 0:21:46]}  Qd6 {[%clk 0:34:48]} 23. Qe3 {[%clk 0:16:38]}  Re8 {[%clk 0:33:51]} 24. Nh3 {[%clk 0:15:21]}  Kg8 {[%clk 0:33:45]}
25. f4 {[%clk 0:15:30]}  Qd7 {[%clk 0:17:10]} 26. Qe2 {[%clk 0:14:01]}  Qd6 {[%clk 0:12:25]} 27. Qf1 {[%clk 0:12:44]}  Rg6 {[%clk 0:07:36]}
28. Ng5 {[%clk 0:12:42]}  Qd8 {[%clk 0:07:12]} 29. Qf3 {[%clk 0:10:51]}  Rxg5 {[%clk 0:06:24]} 30. fxg5 {[%clk 0:11:17]}  Qxg5 {[%clk 0:06:48]}
31. Rc7 {[%clk 0:10:20]}  b6 {[%clk 0:06:41]} 32. h3 {[%clk 0:07:34]}  Qd2 {[%clk 0:02:08]} 33. Qc3 {[%clk 0:07:45]}  Qf4 {[%clk 0:02:03]}
34. Rc8 {[%clk 0:06:25]}  Rxc8 {[%clk 0:02:26]} 35. Qxc8+ {[%clk 0:06:51]}  Kh7 {[%clk 0:02:54]} 36. Qc3 {[%clk 0:05:52]}  Qd6 {[%clk 0:01:28]}
37. Qf3 {[%clk 0:04:26]}  Kg6 {[%clk 0:01:26]} 38. Qe2 {[%clk 0:04:01]}  Kf6 {[%clk 0:01:35]} 39. Kh1 {[%clk 0:01:42]}  g6 {[%clk 0:01:52]}
40. Qd2 {[%clk 0:01:14]}  Qg3 {[%clk 0:00:55]} 41. Re3 {[%clk 0:01:19]}  Qd6 {[%clk 0:29:47]} 42. Rc3 {[%clk 0:30:05]}  g5 {[%clk 0:26:58]}
43. Qe3 {[%clk 0:27:13]}  Qf4 {[%clk 0:15:31]} 44. Qxf4 {[%clk 0:22:21]}  gxf4 {[%clk 0:15:57]} 45. Kg1 {[%clk 0:22:22]}  e5 {[%clk 0:15:51]}
46. dxe5+ {[%clk 0:22:49]}  Kxe5 {[%clk 0:16:18]} 47. Kf1 {[%clk 0:23:06]}  d4 {[%clk 0:16:18]} 48. Rc8 {[%clk 0:23:29]}  Nd3 {[%clk 0:09:04]}
49. Rc6 {[%clk 0:20:44]}  Nxb2 {[%clk 0:09:19]} 50. Rc2 {[%clk 0:16:22]}  Nd1 {[%clk 0:05:10]} 51. Rc6 {[%clk 0:13:39]}  d3 {[%clk 0:04:42]}
52. Ke1 {[%clk 0:12:44]}  Nb2 {[%clk 0:05:04]} 53. Kd2 {[%clk 0:11:48]}  a4 {[%clk 0:05:04]} 54. Kc3 {[%clk 0:09:43]}  a3 {[%clk 0:05:31]}
55. Rc8 {[%clk 0:09:28]}  f3 {[%clk 0:03:55]} 56. gxf3 {[%clk 0:09:32]}  Kf4 {[%clk 0:04:21]} 57. Ra8 {[%clk 0:05:33]}  Kg3 {[%clk 0:04:05]}
58. f4 {[%clk 0:04:29]}  Kxf4 {[%clk 0:04:03]} 59. Rh8 {[%clk 0:01:32]}  Kg3 {[%clk 0:04:16]} 60. Ra8 {[%clk 0:01:57]}  Kg2 {[%clk 0:02:30]}
61. Rf8 {[%clk 0:01:08]}  f4 {[%clk 0:01:59]} 62. Rxf4 {[%clk 0:01:29]}  d2 {[%clk 0:01:18]} 63. Kd4 {[%clk 0:00:56]} 0-1

[Event "2026 European Womens Championship"]
[Site "Batumi, GE"]
[Date "2026.05.28"]
[Round "4"]
[White "Odisharia, Teona"]
[Black "Buksa, Nataliya"]
[Result "0-1"]
[Board "40"]
[TimeControl "5400+30"]
[WhiteFideId "13602322"]
[BlackFideId "14123622"]
[WhiteElo "2167"]
[BlackElo "2392"]
[WhiteTitle "WFM"]
[BlackTitle "IM"]
[WhiteClock "0:02:26"]
[BlackClock "0:05:02"]
[Variant "Standard"]

1. e4 {[%clk 1:30:56]}  c5 {[%clk 1:30:18]} 2. Nf3 {[%clk 1:30:58]}  Nc6 {[%clk 1:30:41]} 3. d4 {[%clk 1:31:19]}  cxd4 {[%clk 1:31:03]}
4. Nxd4 {[%clk 1:31:44]}  Nf6 {[%clk 1:31:08]} 5. Nc3 {[%clk 1:31:44]}  e5 {[%clk 1:31:29]} 6. Ndb5 {[%clk 1:32:02]}  d6 {[%clk 1:31:52]}
7. Bg5 {[%clk 1:32:01]}  a6 {[%clk 1:32:17]} 8. Na3 {[%clk 1:32:25]}  b5 {[%clk 1:32:43]} 9. Nd5 {[%clk 1:32:45]}  Be7 {[%clk 1:33:08]}
10. Bxf6 {[%clk 1:33:06]}  Bxf6 {[%clk 1:33:33]} 11. c4 {[%clk 1:33:23]}  b4 {[%clk 1:33:55]} 12. Nc2 {[%clk 1:33:42]}  O-O {[%clk 1:34:10]}
13. g3 {[%clk 1:33:36]}  a5 {[%clk 1:33:54]} 14. Bg2 {[%clk 1:33:18]}  g6 {[%clk 1:32:29]} 15. O-O {[%clk 1:26:46]}  Bg7 {[%clk 1:31:50]}
16. Qe2 {[%clk 1:20:25]}  Be6 {[%clk 1:30:15]} 17. Rad1 {[%clk 1:20:40]}  Qb8 {[%clk 1:20:09]} 18. b3 {[%clk 1:03:21]}  a4 {[%clk 0:56:04]}
19. Qe1 {[%clk 1:00:54]}  axb3 {[%clk 0:33:19]} 20. axb3 {[%clk 1:01:16]}  Qb7 {[%clk 0:33:27]} 21. Nde3 {[%clk 0:53:58]}  Rfd8 {[%clk 0:26:00]}
22. f4 {[%clk 0:49:43]}  Ra2 {[%clk 0:23:02]} 23. Kh1 {[%clk 0:39:07]}  Qa7 {[%clk 0:10:15]} 24. Rd3 {[%clk 0:34:17]}  Qc5 {[%clk 0:06:36]}
25. f5 {[%clk 0:25:15]}  Bc8 {[%clk 0:07:03]} 26. Qb1 {[%clk 0:25:35]}  Ra5 {[%clk 0:05:34]} 27. Qd1 {[%clk 0:22:55]}  Nd4 {[%clk 0:04:38]}
28. Nxd4 {[%clk 0:20:55]}  exd4 {[%clk 0:05:05]} 29. Nd5 {[%clk 0:21:13]}  Ra2 {[%clk 0:04:29]} 30. Qf3 {[%clk 0:18:17]}  Qa7 {[%clk 0:04:43]}
31. Nxb4 {[%clk 0:18:12]}  Rxg2 {[%clk 0:01:51]} 32. Qxg2 {[%clk 0:18:30]}  Bb7 {[%clk 0:00:35]} 33. Nd5 {[%clk 0:18:49]}  Be5 {[%clk 0:00:52]}
34. Qd2 {[%clk 0:16:41]}  Bxd5 {[%clk 0:00:50]} 35. exd5 {[%clk 0:16:55]}  f6 {[%clk 0:00:55]} 36. fxg6 {[%clk 0:16:36]}  hxg6 {[%clk 0:01:21]}
37. Qh6 {[%clk 0:16:59]}  Qf7 {[%clk 0:01:45]} 38. g4 {[%clk 0:17:15]}  Ra8 {[%clk 0:01:55]} 39. Rh3 {[%clk 0:17:29]}  Qg7 {[%clk 0:02:03]}
40. Qxg7+ {[%clk 0:17:33]}  Kxg7 {[%clk 0:02:30]} 41. Rf2 {[%clk 0:17:13]}  Ra1+ {[%clk 0:00:50]} 42. Kg2 {[%clk 0:17:00]}  Rd1 {[%clk 0:00:57]}
43. Rhf3 {[%clk 0:16:31]}  g5 {[%clk 0:01:07]} 44. Ra2 {[%clk 0:04:07]}  Rb1 {[%clk 0:27:28]} 45. Rd2 {[%clk 0:34:12]}  Kf7 {[%clk 0:26:58]}
46. Rfd3 {[%clk 0:30:17]}  Kg6 {[%clk 0:23:24]} 47. h3 {[%clk 0:27:19]}  Kf7 {[%clk 0:21:10]} 48. Ra2 {[%clk 0:22:33]}  Kg6 {[%clk 0:21:26]}
49. Kf3 {[%clk 0:21:14]}  Rh1 {[%clk 0:13:08]} 50. Ra8 {[%clk 0:20:13]}  Rxh3+ {[%clk 0:09:23]} 51. Ke2 {[%clk 0:20:40]}  Rh1 {[%clk 0:09:50]}
52. Kd2 {[%clk 0:18:21]}  f5 {[%clk 0:10:11]} 53. Rg8+ {[%clk 0:18:22]}  Kf7 {[%clk 0:10:30]} 54. Rb8 {[%clk 0:16:37]}  fxg4 {[%clk 0:10:57]}
55. Ke2 {[%clk 0:16:30]}  g3 {[%clk 0:04:46]} 56. Rb7+ {[%clk 0:09:29]}  Kg6 {[%clk 0:04:57]} 57. Kf3 {[%clk 0:09:10]}  Rh2 {[%clk 0:04:58]}
58. Rxd4 {[%clk 0:02:26]}  Rf2+ {[%clk 0:05:02]} 0-1

[Event "2026 European Womens Championship"]
[Site "Batumi, GE"]
[Date "2026.05.28"]
[Round "4"]
[White "Jimenez Fernandez, Rebeca"]
[Black "Klek, Hanna Marie"]
[Result "1/2-1/2"]
[Board "41"]
[TimeControl "5400+30"]
[WhiteFideId "32070934"]
[BlackFideId "24670057"]
[WhiteElo "2166"]
[BlackElo "2369"]
[WhiteTitle "WFM"]
[BlackTitle "WGM"]
[WhiteClock "0:16:08"]
[BlackClock "0:20:03"]
[Variant "Standard"]

1. e4 {[%clk 1:30:58]}  e5 {[%clk 1:30:53]} 2. Nf3 {[%clk 1:31:23]}  Nc6 {[%clk 1:31:19]} 3. Bb5 {[%clk 1:31:48]}  a6 {[%clk 1:31:43]}
4. Ba4 {[%clk 1:32:15]}  Nf6 {[%clk 1:32:07]} 5. O-O {[%clk 1:32:39]}  Be7 {[%clk 1:32:31]} 6. Re1 {[%clk 1:33:06]}  b5 {[%clk 1:32:50]}
7. Bb3 {[%clk 1:33:31]}  d6 {[%clk 1:33:15]} 8. c3 {[%clk 1:33:54]}  O-O {[%clk 1:33:38]} 9. h3 {[%clk 1:34:21]}  h6 {[%clk 1:34:01]}
10. d4 {[%clk 1:33:24]}  Re8 {[%clk 1:34:20]} 11. Nbd2 {[%clk 1:32:48]}  Bf8 {[%clk 1:34:28]} 12. Nf1 {[%clk 1:27:10]}  Bd7 {[%clk 1:34:17]}
13. Ng3 {[%clk 1:27:27]}  a5 {[%clk 1:34:07]} 14. a4 {[%clk 1:18:47]}  bxa4 {[%clk 1:33:39]} 15. Bxa4 {[%clk 1:18:11]}  exd4 {[%clk 1:30:57]}
16. cxd4 {[%clk 1:17:27]}  Nb4 {[%clk 1:28:37]} 17. Re3 {[%clk 1:03:26]}  Bxa4 {[%clk 1:23:49]} 18. Rxa4 {[%clk 1:03:24]}  d5 {[%clk 1:23:57]}
19. e5 {[%clk 1:01:41]}  Nd7 {[%clk 1:24:12]} 20. Ra1 {[%clk 0:57:25]}  c5 {[%clk 1:22:23]} 21. Re2 {[%clk 0:54:25]}  cxd4 {[%clk 1:12:12]}
22. Qxd4 {[%clk 0:53:34]}  Rc8 {[%clk 1:01:29]} 23. Nf5 {[%clk 0:35:50]}  Rc4 {[%clk 0:53:46]} 24. Qd1 {[%clk 0:35:25]}  Qb8 {[%clk 0:36:02]}
25. b3 {[%clk 0:30:11]}  Rc3 {[%clk 0:28:28]} 26. Bb2 {[%clk 0:24:42]}  Rd3 {[%clk 0:28:41]} 27. Rd2 {[%clk 0:23:38]}  Rxd2 {[%clk 0:26:33]}
28. Qxd2 {[%clk 0:23:47]}  Nc5 {[%clk 0:26:46]} 29. N5d4 {[%clk 0:21:30]}  Ne4 {[%clk 0:26:27]} 30. Qe2 {[%clk 0:17:34]}  Qc7 {[%clk 0:22:18]}
31. Qb5 {[%clk 0:16:43]}  Ra8 {[%clk 0:20:03]} 32. Rc1 {[%clk 0:16:08]} 1/2-1/2

[Event "2026 European Womens Championship"]
[Site "Batumi, GE"]
[Date "2026.05.28"]
[Round "4"]
[White "Mammadova, Gulnar"]
[Black "Ptacnikova, Lenka"]
[Result "1-0"]
[Board "42"]
[TimeControl "5400+30"]
[WhiteFideId "13403508"]
[BlackFideId "305650"]
[WhiteElo "2325"]
[BlackElo "2126"]
[WhiteTitle "IM"]
[BlackTitle "WGM"]
[WhiteClock "0:09:21"]
[BlackClock "0:06:49"]
[Variant "Standard"]

1. e4 {[%clk 1:30:55]}  c5 {[%clk 1:30:51]} 2. Nc3 {[%clk 1:31:07]}  e6 {[%clk 1:31:11]} 3. Nf3 {[%clk 1:31:28]}  Nc6 {[%clk 1:31:31]}
4. d4 {[%clk 1:31:36]}  cxd4 {[%clk 1:31:57]} 5. Nxd4 {[%clk 1:32:02]}  Qc7 {[%clk 1:32:19]} 6. Qd3 {[%clk 1:31:59]}  a6 {[%clk 1:29:50]}
7. Nxc6 {[%clk 1:31:58]}  bxc6 {[%clk 1:22:02]} 8. Qg3 {[%clk 1:32:10]}  e5 {[%clk 1:14:02]} 9. f4 {[%clk 1:31:37]}  d6 {[%clk 1:03:44]}
10. Be2 {[%clk 1:31:43]}  Nf6 {[%clk 1:01:25]} 11. O-O {[%clk 1:27:43]}  h5 {[%clk 0:55:07]} 12. h3 {[%clk 1:23:27]}  h4 {[%clk 0:52:15]}
13. Qf2 {[%clk 1:20:10]}  Be7 {[%clk 0:51:01]} 14. Be3 {[%clk 1:15:34]}  exf4 {[%clk 0:48:17]} 15. Bxf4 {[%clk 1:12:51]}  Be6 {[%clk 0:48:08]}
16. Rad1 {[%clk 1:11:09]}  Rb8 {[%clk 0:39:06]} 17. b3 {[%clk 1:00:45]}  Nh5 {[%clk 0:31:52]} 18. Bh2 {[%clk 0:56:39]}  Qa5 {[%clk 0:25:52]}
19. Na4 {[%clk 0:54:15]}  Ng3 {[%clk 0:24:16]} 20. Bxg3 {[%clk 0:52:46]}  hxg3 {[%clk 0:24:42]} 21. Qxg3 {[%clk 0:52:46]}  Qe5 {[%clk 0:24:20]}
22. Qxe5 {[%clk 0:50:58]}  dxe5 {[%clk 0:24:49]} 23. Bxa6 {[%clk 0:51:15]}  Rh4 {[%clk 0:24:14]} 24. Be2 {[%clk 0:49:30]}  g5 {[%clk 0:23:12]}
25. Rd3 {[%clk 0:46:54]}  c5 {[%clk 0:20:33]} 26. g4 {[%clk 0:44:41]}  c4 {[%clk 0:20:42]} 27. Rdf3 {[%clk 0:44:48]}  cxb3 {[%clk 0:20:19]}
28. axb3 {[%clk 0:44:45]}  f6 {[%clk 0:18:10]} 29. Rd1 {[%clk 0:44:38]}  Kf7 {[%clk 0:18:06]} 30. Rc3 {[%clk 0:44:05]}  Rb4 {[%clk 0:17:56]}
31. Nc5 {[%clk 0:42:01]}  Bxc5+ {[%clk 0:16:54]} 32. Rxc5 {[%clk 0:42:30]}  Rxh3 {[%clk 0:17:12]} 33. Rc7+ {[%clk 0:38:31]}  Kg6 {[%clk 0:17:33]}
34. Rd6 {[%clk 0:38:14]}  Bxg4 {[%clk 0:17:31]} 35. Bc4 {[%clk 0:37:53]}  Rg3+ {[%clk 0:13:30]} 36. Kh2 {[%clk 0:37:55]}  Rf3 {[%clk 0:13:43]}
37. Rd8 {[%clk 0:35:03]}  Rf4 {[%clk 0:10:25]} 38. Bf7+ {[%clk 0:26:47]}  Kh6 {[%clk 0:10:11]} 39. Rh8+ {[%clk 0:27:05]}  Kg7 {[%clk 0:10:36]}
40. Rg8+ {[%clk 0:27:32]}  Kh7 {[%clk 0:10:02]} 41. Bc4+ {[%clk 0:15:55]}  Kh6 {[%clk 0:10:21]} 42. Rh8+ {[%clk 0:12:36]}  Kg6 {[%clk 0:10:42]}
43. Bg8 {[%clk 0:12:47]}  f5 {[%clk 0:09:16]} 44. Bh7+ {[%clk 0:10:48]}  Kf6 {[%clk 0:09:26]} 45. Rg8 {[%clk 0:10:28]}  Bh5 {[%clk 0:08:51]}
46. Bxf5 {[%clk 0:10:18]}  g4 {[%clk 0:08:57]} 47. Rc6+ {[%clk 0:09:47]}  Kf7 {[%clk 0:08:04]} 48. Rh8 {[%clk 0:09:35]}  g3+ {[%clk 0:06:49]}
49. Kxg3 {[%clk 0:09:21]} 1-0

[Event "2026 European Womens Championship"]
[Site "Batumi, GE"]
[Date "2026.05.28"]
[Round "4"]
[White "Gueci, Tea"]
[Black "Krasteva, Beloslava"]
[Result "0-1"]
[Board "43"]
[TimeControl "5400+30"]
[WhiteFideId "872342"]
[BlackFideId "2922029"]
[WhiteElo "2160"]
[BlackElo "2285"]
[WhiteTitle "WIM"]
[BlackTitle "WGM"]
[WhiteClock "0:22:19"]
[BlackClock "0:24:05"]
[Variant "Standard"]

1. e4 {[%clk 1:30:59]}  e5 {[%clk 1:30:52]} 2. Nf3 {[%clk 1:31:25]}  Nc6 {[%clk 1:31:16]} 3. Nc3 {[%clk 1:31:52]}  Nf6 {[%clk 1:31:08]}
4. h3 {[%clk 1:32:18]}  Bb4 {[%clk 1:25:26]} 5. Bd3 {[%clk 1:32:43]}  O-O {[%clk 1:23:37]} 6. O-O {[%clk 1:32:23]}  Re8 {[%clk 1:18:42]}
7. Re1 {[%clk 1:26:27]}  Bxc3 {[%clk 1:13:47]} 8. dxc3 {[%clk 1:24:43]}  h6 {[%clk 1:13:44]} 9. Bc4 {[%clk 1:19:03]}  d6 {[%clk 1:13:15]}
10. a4 {[%clk 1:14:48]}  a5 {[%clk 1:08:39]} 11. Bb5 {[%clk 1:05:26]}  Bd7 {[%clk 1:08:40]} 12. Nh2 {[%clk 1:04:24]}  Ne7 {[%clk 1:07:02]}
13. Bxd7 {[%clk 1:01:48]}  Qxd7 {[%clk 1:05:21]} 14. c4 {[%clk 1:01:00]}  Qe6 {[%clk 0:54:33]} 15. b3 {[%clk 0:59:00]}  Nd7 {[%clk 0:48:41]}
16. Nf1 {[%clk 0:44:21]}  Kh8 {[%clk 0:37:07]} 17. Ne3 {[%clk 0:41:54]}  f5 {[%clk 0:36:47]} 18. exf5 {[%clk 0:36:51]}  Nxf5 {[%clk 0:37:10]}
19. Qg4 {[%clk 0:28:08]}  Nxe3 {[%clk 0:28:54]} 20. Bxe3 {[%clk 0:28:33]}  Qxg4 {[%clk 0:18:57]} 21. hxg4 {[%clk 0:28:58]}  g5 {[%clk 0:18:59]}
22. f3 {[%clk 0:27:10]}  b6 {[%clk 0:19:15]} 23. Kf2 {[%clk 0:19:29]}  Kg7 {[%clk 0:19:31]} 24. Kg3 {[%clk 0:11:22]}  Re6 {[%clk 0:18:58]}
25. c3 {[%clk 0:07:21]}  Rae8 {[%clk 0:15:13]} 26. b4 {[%clk 0:06:25]}  e4 {[%clk 0:12:24]} 27. bxa5 {[%clk 0:04:50]}  bxa5 {[%clk 0:12:48]}
28. Rab1 {[%clk 0:03:22]}  exf3 {[%clk 0:04:39]} 29. Bd4+ {[%clk 0:03:40]}  Kg6 {[%clk 0:04:55]} 30. Rxe6+ {[%clk 0:03:57]}  Rxe6 {[%clk 0:05:23]}
31. gxf3 {[%clk 0:03:13]}  c5 {[%clk 0:05:26]} 32. Bg1 {[%clk 0:00:50]}  Ne5 {[%clk 0:05:38]} 33. Rb5 {[%clk 0:00:35]}  Nxc4 {[%clk 0:04:07]}
34. Bxc5 {[%clk 0:01:03]}  dxc5 {[%clk 0:04:12]} 35. Rxc5 {[%clk 0:01:29]}  Nd2 {[%clk 0:03:30]} 36. Rxa5 {[%clk 0:01:31]}  Re2 {[%clk 0:03:15]}
37. Ra6+ {[%clk 0:01:23]}  Kg7 {[%clk 0:02:52]} 38. Ra7+ {[%clk 0:01:28]}  Kf6 {[%clk 0:02:20]} 39. Ra6+ {[%clk 0:01:40]}  Ke5 {[%clk 0:01:29]}
40. Ra5+ {[%clk 0:01:40]}  Kd6 {[%clk 0:01:15]} 41. Ra6+ {[%clk 0:29:50]}  Kc7 {[%clk 0:25:16]} 42. f4 {[%clk 0:26:43]}  Re3+ {[%clk 0:25:17]}
43. Kf2 {[%clk 0:24:20]}  gxf4 {[%clk 0:25:32]} 44. Rxh6 {[%clk 0:24:40]}  Ne4+ {[%clk 0:25:16]} 45. Kf1 {[%clk 0:24:43]}  f3 {[%clk 0:24:54]}
46. Rh7+ {[%clk 0:23:14]}  Kd6 {[%clk 0:24:42]} 47. Rf7 {[%clk 0:23:06]}  Rxc3 {[%clk 0:23:38]} 48. Kg1 {[%clk 0:21:56]}  Rc1+ {[%clk 0:23:45]}
49. Kh2 {[%clk 0:22:19]}  f2 {[%clk 0:24:05]} 0-1

[Event "2026 European Womens Championship"]
[Site "Batumi, GE"]
[Date "2026.05.28"]
[Round "4"]
[White "Urh, Zala"]
[Black "Ismayil, Malak"]
[Result "0-1"]
[Board "44"]
[TimeControl "5400+30"]
[WhiteFideId "14611481"]
[BlackFideId "13412604"]
[WhiteElo "2263"]
[BlackElo "2122"]
[WhiteTitle "WIM"]
[BlackTitle "WIM"]
[WhiteClock "0:11:00"]
[BlackClock "0:35:54"]
[Variant "Standard"]

1. d4 {[%clk 1:30:59]}  d5 {[%clk 1:30:55]} 2. c4 {[%clk 1:31:25]}  c6 {[%clk 1:31:22]} 3. cxd5 {[%clk 1:31:03]}  cxd5 {[%clk 1:31:49]}
4. Nc3 {[%clk 1:31:27]}  e6 {[%clk 1:32:04]} 5. Bf4 {[%clk 1:30:21]}  Bd6 {[%clk 1:32:29]} 6. Bxd6 {[%clk 1:30:11]}  Qxd6 {[%clk 1:32:55]}
7. e3 {[%clk 1:30:21]}  Bd7 {[%clk 1:32:53]} 8. Bd3 {[%clk 1:28:36]}  Nc6 {[%clk 1:31:25]} 9. Rc1 {[%clk 1:17:54]}  Nge7 {[%clk 1:30:10]}
10. Nf3 {[%clk 1:15:53]}  h6 {[%clk 1:23:07]} 11. O-O {[%clk 1:13:38]}  O-O {[%clk 1:23:29]} 12. e4 {[%clk 1:01:17]}  Qb4 {[%clk 1:15:58]}
13. e5 {[%clk 0:49:51]}  Na5 {[%clk 1:13:26]} 14. b3 {[%clk 0:38:49]}  Rfc8 {[%clk 1:13:28]} 15. Ne2 {[%clk 0:39:07]}  Rxc1 {[%clk 1:11:24]}
16. Qxc1 {[%clk 0:36:39]}  Bb5 {[%clk 1:08:20]} 17. Bxb5 {[%clk 0:32:13]}  Qxb5 {[%clk 1:08:47]} 18. Nf4 {[%clk 0:32:33]}  Rc8 {[%clk 1:07:46]}
19. Qd2 {[%clk 0:32:50]}  b6 {[%clk 1:07:48]} 20. Nd3 {[%clk 0:23:58]}  Rc7 {[%clk 0:56:57]} 21. h4 {[%clk 0:21:37]}  Qc6 {[%clk 0:55:29]}
22. Rc1 {[%clk 0:21:06]}  Qd7 {[%clk 0:55:54]} 23. h5 {[%clk 0:20:54]}  Rxc1+ {[%clk 0:56:13]} 24. Qxc1 {[%clk 0:21:12]}  Nac6 {[%clk 0:51:35]}
25. g4 {[%clk 0:20:19]}  Qb7 {[%clk 0:48:09]} 26. Qa3 {[%clk 0:15:57]}  Nc8 {[%clk 0:48:10]} 27. Kg2 {[%clk 0:15:13]}  a5 {[%clk 0:46:26]}
28. Qb2 {[%clk 0:12:23]}  Qe7 {[%clk 0:46:04]} 29. Qc1 {[%clk 0:10:00]}  N8a7 {[%clk 0:43:40]} 30. Nf4 {[%clk 0:09:53]}  Qb4 {[%clk 0:43:13]}
31. Ne2 {[%clk 0:10:01]}  Qb5 {[%clk 0:42:18]} 32. Ng3 {[%clk 0:05:56]}  Qd3 {[%clk 0:40:28]} 33. g5 {[%clk 0:06:22]}  hxg5 {[%clk 0:39:35]}
34. Qxg5 {[%clk 0:06:46]}  Nb5 {[%clk 0:39:58]} 35. h6 {[%clk 0:02:45]}  Qg6 {[%clk 0:40:19]} 36. Qd2 {[%clk 0:01:55]}  Qxh6 {[%clk 0:33:25]}
37. Qd3 {[%clk 0:02:18]}  Qf4 {[%clk 0:33:04]} 38. Ne2 {[%clk 0:01:06]}  Qg4+ {[%clk 0:33:30]} 39. Kh2 {[%clk 0:00:43]}  Nba7 {[%clk 0:32:54]}
40. Ng3 {[%clk 0:00:36]}  Nb4 {[%clk 0:31:17]} 41. Qe2 {[%clk 0:27:42]}  Nxa2 {[%clk 1:00:51]} 42. Kg2 {[%clk 0:28:04]}  Nb4 {[%clk 1:01:07]}
43. Qf1 {[%clk 0:26:36]}  Nac6 {[%clk 0:58:41]} 44. Qd1 {[%clk 0:26:38]}  Qg6 {[%clk 0:58:36]} 45. Qc1 {[%clk 0:26:33]}  Qc2 {[%clk 0:51:24]}
46. Qe3 {[%clk 0:22:55]}  b5 {[%clk 0:51:17]} 47. Kh3 {[%clk 0:20:32]}  Qd3 {[%clk 0:50:24]} 48. Qf4 {[%clk 0:20:42]}  a4 {[%clk 0:50:06]}
49. bxa4 {[%clk 0:21:05]}  bxa4 {[%clk 0:50:33]} 50. Ng5 {[%clk 0:20:33]}  Qg6 {[%clk 0:50:18]} 51. Qc1 {[%clk 0:20:56]}  a3 {[%clk 0:50:31]}
52. f4 {[%clk 0:21:14]}  Nc2 {[%clk 0:40:41]} 53. f5 {[%clk 0:10:36]}  Qh6+ {[%clk 0:35:29]} 54. Kg4 {[%clk 0:11:00]}  a2 {[%clk 0:35:54]} 0-1

[Event "2026 European Womens Championship"]
[Site "Batumi, GE"]
[Date "2026.05.28"]
[Round "4"]
[White "Radeva, Viktoria"]
[Black "Liavonava, Yuliya"]
[Result "0-1"]
[Board "45"]
[TimeControl "5400+30"]
[WhiteFideId "2915405"]
[BlackFideId "13524178"]
[WhiteElo "2242"]
[BlackElo "2118"]
[WhiteTitle "WGM"]
[BlackTitle "WFM"]
[WhiteClock "0:03:31"]
[BlackClock "0:04:32"]
[Variant "Standard"]

1. e4 {[%clk 1:30:58]}  c5 {[%clk 1:30:54]} 2. Nf3 {[%clk 1:30:40]}  d6 {[%clk 1:31:12]} 3. d4 {[%clk 1:31:06]}  cxd4 {[%clk 1:31:35]}
4. Nxd4 {[%clk 1:31:28]}  Nf6 {[%clk 1:32:01]} 5. Nc3 {[%clk 1:31:53]}  a6 {[%clk 1:32:27]} 6. h3 {[%clk 1:32:16]}  e5 {[%clk 1:32:30]}
7. Nb3 {[%clk 1:32:24]}  Be6 {[%clk 1:30:13]} 8. Be3 {[%clk 1:32:45]}  Be7 {[%clk 1:28:59]} 9. Qf3 {[%clk 1:32:50]}  Nbd7 {[%clk 1:21:07]}
10. g4 {[%clk 1:30:51]}  h6 {[%clk 1:20:03]} 11. O-O-O {[%clk 1:17:23]}  Rc8 {[%clk 1:20:01]} 12. Nd5 {[%clk 1:15:08]}  Bxd5 {[%clk 1:19:47]}
13. exd5 {[%clk 1:15:31]}  Nb6 {[%clk 1:06:54]} 14. Bxb6 {[%clk 1:06:27]}  Qxb6 {[%clk 1:07:20]} 15. Kb1 {[%clk 1:01:57]}  g6 {[%clk 0:57:39]}
16. Bd3 {[%clk 0:56:57]}  h5 {[%clk 0:54:01]} 17. Rde1 {[%clk 0:46:30]}  h4 {[%clk 0:44:54]} 18. c4 {[%clk 0:31:50]}  Nd7 {[%clk 0:43:56]}
19. Qe4 {[%clk 0:28:18]}  g5 {[%clk 0:24:06]} 20. Qf5 {[%clk 0:26:47]}  Kd8 {[%clk 0:23:04]} 21. Qxf7 {[%clk 0:21:04]}  Rf8 {[%clk 0:23:27]}
22. Qe6 {[%clk 0:20:15]}  Rf6 {[%clk 0:22:37]} 23. Qg8+ {[%clk 0:20:38]}  Rf8 {[%clk 0:23:05]} 24. Qh7 {[%clk 0:15:01]}  Qxf2 {[%clk 0:22:05]}
25. Rhf1 {[%clk 0:10:01]}  Qg3 {[%clk 0:22:02]} 26. Bf5 {[%clk 0:09:33]}  Rxc4 {[%clk 0:16:37]} 27. Rc1 {[%clk 0:09:07]}  Qxh3 {[%clk 0:15:52]}
28. Na5 {[%clk 0:07:41]}  Rb4 {[%clk 0:12:59]} 29. Nc6+ {[%clk 0:06:39]}  bxc6 {[%clk 0:13:23]} 30. dxc6 {[%clk 0:07:06]}  Rc4 {[%clk 0:03:15]}
31. Rxc4 {[%clk 0:05:48]}  Qxf1+ {[%clk 0:03:42]} 32. Rc1 {[%clk 0:06:14]}  Rxf5 {[%clk 0:04:07]} 33. gxf5 {[%clk 0:04:47]}  Qd3+ {[%clk 0:04:36]}
34. Ka1 {[%clk 0:05:17]}  Qd2 {[%clk 0:05:01]} 35. Qg8+ {[%clk 0:04:12]}  Kc7 {[%clk 0:05:13]} 36. Qc4 {[%clk 0:03:31]}  Nc5 {[%clk 0:05:00]}
37. b4 {[%clk 0:03:06]}  Nd3 {[%clk 0:04:06]} 38. f6 {[%clk 0:03:31]}  Qb2# {[%clk 0:04:32]} 0-1